bitfinex/quotes_BTCUSD_20241003
["timestamp","ask_amount","ask_price","bid_price","bid_amount"]
[1727926358444,0.208064,61508.0,61507.0,0.002636]
[1727926359614,0.208064,61508.0,61507.0,0.001636]
[1727926360543,0.208064,61508.0,61507.0,0.002636]
[1727926360776,0.208064,61508.0,61507.0,0.001636]
[1727926361964,0.209064,61508.0,61507.0,0.001636]
[1727926362199,0.23455336,61508.0,61507.0,0.001636]
[1727926362447,0.23355336,61508.0,61507.0,0.001636]
[1727926362937,0.23555336,61508.0,61507.0,0.001636]
[1727926363168,0.23455336,61508.0,61507.0,0.001636]
[1727926363443,0.23355336,61508.0,61507.0,0.001636]
[1727926363665,0.23455336,61508.0,61507.0,0.001636]
[1727926363891,0.23355336,61508.0,61507.0,0.001636]
[1727926364110,0.23455336,61508.0,61507.0,0.001636]
[1727926364822,0.32149762,61508.0,61507.0,0.001636]
[1727926365534,0.32249762,61508.0,61507.0,0.001636]
[1727926366043,0.32149762,61508.0,61507.0,0.001636]
[1727926366274,0.29500826,61508.0,61507.0,0.001636]
[1727926366498,0.29700826,61508.0,61507.0,0.001636]
[1727926367446,0.210064,61508.0,61507.0,0.001636]
[1727926372345,0.210882,61508.0,61507.0,0.001636]
[1727926374848,0.002818,61508.0,61507.0,0.001636]
[1727926375983,0.001818,61508.0,61507.0,0.001636]
[1727926376231,0.000818,61508.0,61507.0,0.001636]
[1727926376977,0.001818,61508.0,61507.0,0.001636]
[1727926377227,0.001818,61508.0,61507.0,0.002636]
[1727926378269,0.000818,61508.0,61507.0,0.002636]
[1727926378503,0.15637022,61508.0,61507.0,0.002636]
[1727926383228,0.23727022,61508.0,61507.0,0.002636]
[1727926383490,0.38605676,61508.0,61507.0,0.002636]
[1727926383727,0.45923658,61508.0,61507.0,0.002636]
[1727926384059,0.33727022,61508.0,61507.0,0.002636]
[1727926384493,0.33727022,61508.0,61507.0,0.001636]
[1727926384746,0.33827022,61508.0,61507.0,0.001636]
[1727926385227,0.33727022,61508.0,61507.0,0.001636]
[1727926385943,0.57638459,61508.0,61507.0,0.002636]
[1727926386196,0.45177022,61508.0,61507.0,0.002636]
[1727926386714,0.45177022,61508.0,61507.0,0.003636]
[1727926386715,0.45277022,61508.0,61507.0,0.003636]
[1727926387203,0.60112985,61508.0,61507.0,0.003636]
[1727926387680,0.57564163,61508.0,61507.0,0.003636]
[1727926388168,0.428282,61508.0,61507.0,0.002636]
[1727926388677,0.429282,61508.0,61507.0,0.003636]
[1727926389480,0.429282,61508.0,61495.0,0.0493873]
[1727926389481,0.410189,61496.0,61495.0,0.0493873]
[1727926389740,0.435189,61496.0,61495.0,0.0493873]
[1727926389973,0.433206,61488.0,61487.0,0.009334]
[1727926390223,0.5656768,61488.0,61487.0,0.009334]
[1727926390733,0.5676768,61488.0,61487.0,0.009334]
[1727926390982,0.59317658,61488.0,61487.0,0.009334]
[1727926391262,0.71296849,61488.0,61487.0,0.009334]
[1727926391532,0.66420827,61488.0,61487.0,0.009334]
[1727926391810,0.41103747,61488.0,61487.0,0.009334]
[1727926392079,0.15560578,61488.0,61487.0,0.009334]
[1727926392366,0.15560578,61488.0,61487.0,0.010334]
[1727926392367,0.16860578,61488.0,61487.0,0.010334]
[1727926392914,0.16960578,61488.0,61487.0,0.009334]
[1727926393163,0.03649978,61488.0,61487.0,0.010334]
[1727926393400,0.03649978,61488.0,61487.0,0.140442]
[1727926393401,0.03949978,61488.0,61487.0,0.140442]
[1727926394406,0.02549978,61488.0,61487.0,0.139442]
[1727926394880,0.03049978,61488.0,61487.0,0.009334]
[1727926395370,0.03049978,61488.0,61487.0,0.139442]
[1727926395371,0.02649978,61488.0,61487.0,0.139442]
[1727926395622,0.02749978,61488.0,61487.0,0.010334]
[1727926396095,0.02749978,61488.0,61487.0,0.009334]
[1727926396096,0.02649978,61488.0,61487.0,0.009334]
[1727926396335,0.02649978,61488.0,61487.0,0.139442]
[1727926396579,0.02749978,61488.0,61487.0,0.009334]
[1727926396865,0.02749978,61488.0,61487.0,0.139442]
[1727926397110,0.02749978,61488.0,61487.0,0.009334]
[1727926397111,0.001,61488.0,61487.0,0.009334]
[1727926397350,0.002,61488.0,61487.0,0.009334]
[1727926397840,0.003,61488.0,61487.0,0.009334]
[1727926398101,0.215106,61488.0,61487.0,0.009334]
[1727926398349,0.214106,61488.0,61487.0,0.009334]
[1727926398599,0.214106,61488.0,61487.0,0.010334]
[1727926399109,0.214106,61488.0,61487.0,0.009334]
[1727926399602,0.216106,61488.0,61487.0,0.009334]
[1727926399847,0.212106,61488.0,61487.0,0.009334]
[1727926400099,0.215106,61488.0,61487.0,0.009334]
[1727926400359,0.24060248,61488.0,61487.0,0.009334]
[1727926400590,0.24260248,61488.0,61487.0,0.009334]
[1727926403062,0.23960248,61488.0,61487.0,0.009334]
[1727926403293,0.24660248,61488.0,61487.0,0.009334]
[1727926403806,0.25460248,61488.0,61487.0,0.009334]
[1727926404048,0.24660248,61488.0,61487.0,0.009334]
[1727926404379,0.25060248,61488.0,61487.0,0.009334]
[1727926404716,0.15960248,61488.0,61487.0,0.009334]
[1727926405171,0.16460248,61488.0,61487.0,0.009334]
[1727926405849,0.15960248,61488.0,61487.0,0.009334]
[1727926406553,0.16260248,61488.0,61487.0,0.009334]
[1727926406776,0.130106,61488.0,61487.0,0.009334]
[1727926407231,0.131106,61488.0,61487.0,0.009334]
[1727926407453,0.130106,61488.0,61487.0,0.009334]
[1727926407676,0.131106,61488.0,61487.0,0.009334]
[1727926408167,0.253406,61488.0,61487.0,0.009334]
[1727926408408,0.334906,61488.0,61487.0,0.009334]
[1727926408645,0.336906,61488.0,61487.0,0.009334]
[1727926409327,0.334906,61488.0,61487.0,0.009334]
[1727926409564,0.338906,61488.0,61487.0,0.009334]
[1727926409806,0.337906,61488.0,61487.0,0.009334]
[1727926410028,0.35940391,61488.0,61487.0,0.009334]
[1727926410259,0.36240391,61488.0,61487.0,0.009334]
[1727926410486,0.36640391,61488.0,61487.0,0.009334]
[1727926410737,0.37240391,61488.0,61487.0,0.009334]
[1727926411628,0.36640391,61488.0,61487.0,0.009334]
[1727926411880,0.36540391,61488.0,61487.0,0.009334]
[1727926412569,0.37240391,61488.0,61487.0,0.009334]
[1727926420586,0.346906,61488.0,61487.0,0.009334]
[1727926421921,0.247606,61488.0,61487.0,0.009334]
[1727926423541,0.2731045,61488.0,61487.0,0.009334]
[1727926427572,0.247606,61488.0,61487.0,0.009334]
[1727926428047,0.29633364,61488.0,61487.0,0.009334]
[1727926428260,0.247606,61488.0,61487.0,0.009334]
[1727926428486,0.29633364,61488.0,61487.0,0.009334]
[1727926429408,0.247606,61488.0,61487.0,0.009334]
[1727926429637,0.32077931,61488.0,61487.0,0.009334]
[1727926430577,0.34627791,61488.0,61487.0,0.009334]
[1727926432390,0.2731046,61488.0,61487.0,0.009334]
[1727926432836,0.51715784,61488.0,61487.0,0.009334]
[1727926433060,0.37055988,61488.0,61487.0,0.009334]
[1727926433808,0.47055988,61488.0,61487.0,0.009334]
[1727926435312,0.3731046,61488.0,61487.0,0.009334]
[1727926436344,0.51955784,61488.0,61487.0,0.009334]
[1727926436600,0.3731046,61488.0,61487.0,0.009334]
[1727926436814,0.347606,61488.0,61487.0,0.009334]
[1727926438065,0.443806,61488.0,61487.0,0.009334]
[1727926438557,0.56995148,61488.0,61487.0,0.009334]
[1727926439982,0.59545206,61488.0,61487.0,0.009334]
[1727926440474,0.59745206,61488.0,61487.0,0.009334]
[1727926441170,1.21937206,61488.0,61487.0,0.009334]
[1727926441397,1.21237206,61488.0,61487.0,0.009334]
[1727926441912,1.22637206,61488.0,61487.0,0.009334]
[1727926442141,0.153134,61475.0,61474.0,0.001634]
[1727926442383,0.38321497,61475.0,61474.0,0.001634]
[1727926442890,0.40871878,61475.0,61474.0,0.001634]
[1727926443827,0.41171878,61475.0,61474.0,0.001634]
[1727926444052,0.41571878,61475.0,61474.0,0.001634]
[1727926444287,0.31810861,61475.0,61474.0,0.001634]
[1727926445186,0.42393266,61475.0,61474.0,0.001634]
[1727926445452,0.49712152,61475.0,61474.0,0.001634]
[1727926445675,0.42393266,61475.0,61474.0,0.001634]
[1727926445897,0.31810861,61475.0,61474.0,0.001634]
[1727926446386,0.39128919,61475.0,61474.0,0.001634]
[1727926448950,0.39127716,61475.0,61474.0,0.001634]
[1727926449403,0.31810861,61475.0,61474.0,0.001634]
[1727926449642,0.27270355,61475.0,61474.0,0.001634]
[1727926449882,0.65407782,61475.0,61474.0,0.001634]
[1727926450115,0.70292198,61475.0,61474.0,0.001634]
[1727926450344,0.58090927,61475.0,61474.0,0.001634]
[1727926451074,0.57390927,61475.0,61474.0,0.001634]
[1727926451314,0.59690927,61475.0,61474.0,0.001634]
[1727926451796,0.58490927,61475.0,61474.0,0.001634]
[1727926452480,0.55940546,61475.0,61474.0,0.001634]
[1727926452706,0.41539974,61475.0,61474.0,0.001634]
[1727926452946,0.328334,61475.0,61474.0,0.001634]
[1727926453203,0.19288668,61475.0,61474.0,0.001634]
[1727926453434,0.144134,61475.0,61474.0,0.001634]
[1727926453900,0.130134,61475.0,61474.0,0.001634]
[1727926454134,0.144134,61475.0,61474.0,0.001634]
[1727926454364,0.155134,61475.0,61474.0,0.001634]
[1727926454595,0.130134,61475.0,61474.0,0.001634]
[1727926454849,0.132134,61475.0,61474.0,0.001634]
[1727926455837,0.133134,61475.0,61474.0,0.001634]
[1727926457437,0.003,61475.0,61474.0,0.13177]
[1727926458559,0.003,61475.0,61474.0,0.001634]
[1727926460166,0.02850177,61475.0,61474.0,0.001634]
[1727926462257,0.02850177,61475.0,61474.0,0.13177]
[1727926462504,0.02850177,61475.0,61474.0,0.001634]
[1727926462999,0.02850177,61475.0,61474.0,0.13177]
[1727926463515,0.02850177,61475.0,61474.0,0.001634]
[1727926463979,0.02850177,61475.0,61474.0,0.13177]
[1727926465653,0.02850177,61475.0,61474.0,0.001634]
[1727926467629,0.02850177,61475.0,61474.0,0.13177]
[1727926467873,0.02850177,61475.0,61474.0,0.001634]
[1727926468356,0.02850177,61475.0,61474.0,0.13177]
[1727926468619,0.003,61475.0,61474.0,0.001634]
[1727926471119,0.26573307,61475.0,61474.0,0.001634]
[1727926472138,0.38210013,61475.0,61474.0,0.001634]
[1727926472397,0.46153307,61475.0,61474.0,0.001634]
[1727926472629,0.51030022,61475.0,61474.0,0.001634]
[1727926473105,0.46153307,61475.0,61474.0,0.001634]
[1727926473302,0.5103152,61475.0,61474.0,0.001634]
[1727926473582,0.5083152,61475.0,61474.0,0.001634]
[1727926473833,0.5073152,61475.0,61474.0,0.001634]
[1727926474063,0.5093152,61475.0,61474.0,0.001634]
[1727926475015,0.5123152,61475.0,61474.0,0.001634]
[1727926475502,0.5073152,61475.0,61474.0,0.001634]
[1727926475757,0.5143152,61475.0,61474.0,0.001634]
[1727926476006,0.5153152,61475.0,61474.0,0.001634]
[1727926476488,0.137134,61475.0,61474.0,0.001634]
[1727926476718,0.145134,61475.0,61474.0,0.001634]
[1727926477178,0.138134,61475.0,61474.0,0.001634]
[1727926477922,0.130134,61475.0,61474.0,0.001634]
[1727926478173,0.007,61475.0,61474.0,0.001634]
[1727926478693,0.013,61475.0,61474.0,0.001634]
[1727926479908,0.16863632,61475.0,61474.0,0.001634]
[1727926484139,0.24042876,61475.0,61474.0,0.001634]
[1727926484387,0.26482498,61475.0,61474.0,0.001634]
[1727926484662,0.19163632,61475.0,61474.0,0.001634]
[1727926489071,0.26484419,61475.0,61474.0,0.001634]
[1727926489318,0.23934187,61475.0,61474.0,0.001634]
[1727926489561,0.166134,61475.0,61474.0,0.001634]
[1727926489771,0.23934187,61475.0,61474.0,0.001634]
[1727926492350,0.26484609,61475.0,61474.0,0.001634]
[1727926493310,0.32289685,61475.0,61474.0,0.001634]
[1727926493544,0.420508,61475.0,61474.0,0.001634]
[1727926493774,0.60756657,61475.0,61474.0,0.001634]
[1727926494492,0.37869679,61475.0,61474.0,0.001634]
[1727926494726,0.50072489,61475.0,61474.0,0.001634]
[1727926494956,0.37869679,61475.0,61474.0,0.001634]
[1727926495190,0.35319257,61475.0,61474.0,0.001634]
[1727926495417,0.47521935,61475.0,61474.0,0.001634]
[1727926495867,0.59693456,61475.0,61474.0,0.001634]
[1727926496739,0.57330778,61475.0,61474.0,0.001634]
[1727926497393,0.64870778,61475.0,61474.0,0.001634]
[1727926497786,0.52699257,61475.0,61474.0,0.001634]
[1727926498347,0.55249932,61475.0,61474.0,0.001634]
[1727926498733,0.78926032,61475.0,61474.0,0.001634]
[1727926498969,0.78326032,61475.0,61474.0,0.001634]
[1727926499463,0.79926032,61475.0,61474.0,0.001634]
[1727926499712,0.94032568,61475.0,61474.0,0.001634]
[1727926499946,0.94732568,61475.0,61474.0,0.001634]
[1727926500186,0.77757596,61475.0,61474.0,0.001634]
[1727926500414,0.87546596,61475.0,61474.0,0.001634]
[1727926500650,0.86146596,61475.0,61474.0,0.001634]
[1727926501446,0.87546596,61475.0,61474.0,0.001634]
[1727926501678,0.86146596,61475.0,61474.0,0.001634]
[1727926501922,1.01065267,61475.0,61474.0,0.001634]
[1727926502176,1.02465267,61475.0,61474.0,0.001634]
[1727926502654,1.03616126,61475.0,61474.0,0.001634]
[1727926502919,1.05016126,61475.0,61474.0,0.001634]
[1727926503184,0.75225659,61475.0,61474.0,0.001634]
[1727926503447,0.59016055,61475.0,61474.0,0.001634]
[1727926503711,0.34504259,61475.0,61474.0,0.001634]
[1727926503967,0.26964259,61475.0,61474.0,0.001634]
[1727926504220,0.35680294,61475.0,61474.0,0.001634]
[1727926504680,0.32880294,61475.0,61474.0,0.001634]
[1727926504941,0.35680294,61475.0,61474.0,0.001634]
[1727926505177,0.29264259,61475.0,61474.0,0.001634]
[1727926505406,0.36580245,61475.0,61474.0,0.001634]
[1727926505647,0.37280245,61475.0,61474.0,0.001634]
[1727926505893,0.36580245,61475.0,61474.0,0.001634]
[1727926506118,0.35680245,61475.0,61474.0,0.001634]
[1727926506360,0.36280245,61475.0,61474.0,0.001634]
[1727926507358,0.35680245,61475.0,61474.0,0.001634]
[1727926507822,0.35780245,61475.0,61474.0,0.001634]
[1727926508066,0.36280245,61475.0,61474.0,0.001634]
[1727926508569,0.33729386,61475.0,61474.0,0.001634]
[1727926510181,0.33731223,61475.0,61474.0,0.001634]
[1727926510653,0.36281758,61475.0,61474.0,0.001634]
[1727926511110,0.28963935,61475.0,61474.0,0.001634]
[1727926513245,0.38721033,61475.0,61474.0,0.001634]
[1727926514222,0.28963935,61475.0,61474.0,0.001634]
[1727926514471,0.2930539,61475.0,61474.0,0.001634]
[1727926514713,0.2571199,61475.0,61474.0,0.001634]
[1727926515419,0.36285612,61475.0,61474.0,0.001634]
[1727926515645,0.28963935,61475.0,61474.0,0.001634]
[1727926515872,0.3872539,61475.0,61474.0,0.001634]
[1727926516334,0.28963935,61475.0,61474.0,0.001634]
[1727926519095,0.264134,61475.0,61474.0,0.001634]
[1727926519772,0.35119561,61475.0,61474.0,0.001634]
[1727926520451,0.47315934,61475.0,61474.0,0.001634]
[1727926522057,0.49866484,61475.0,61474.0,0.001634]
[1727926524588,0.37670111,61475.0,61474.0,0.001634]
[1727926525094,0.37751911,61475.0,61474.0,0.001634]
[1727926527684,0.2674575,61475.0,61474.0,0.001634]
[1727926527909,0.011818,61475.0,61474.0,0.21883161]
[1727926528159,0.011818,61475.0,61474.0,0.30883161]
[1727926528389,0.011818,61475.0,61474.0,0.39163161]
[1727926528872,0.000818,61475.0,61474.0,0.39163161]
[1727926529115,0.002818,61475.0,61474.0,0.39263161]
[1727926529363,0.001818,61475.0,61474.0,0.39263161]
[1727926529586,0.000818,61475.0,61474.0,0.30457]
[1727926529810,0.001818,61475.0,61474.0,0.30457]
[1727926530040,0.001818,61475.0,61474.0,0.30557]
[1727926530518,0.000818,61475.0,61474.0,0.30457]
[1727926530754,0.000818,61475.0,61474.0,0.30557]
[1727926531507,0.001818,61475.0,61474.0,0.30657]
[1727926531961,0.000818,61475.0,61474.0,0.30457]
[1727926532417,0.02831934,61475.0,61474.0,0.30657]
[1727926533095,0.02931934,61475.0,61474.0,0.30757]
[1727926533323,0.02931934,61475.0,61474.0,0.30557]
[1727926533324,0.02731934,61475.0,61474.0,0.30557]
[1727926533804,0.03386744,61475.0,61474.0,0.43714641]
[1727926534254,0.02631934,61475.0,61474.0,0.43714641]
[1727926534982,0.02731934,61475.0,61474.0,0.43814641]
[1727926535208,0.000818,61475.0,61474.0,0.43714641]
[1727926535471,0.002818,61475.0,61474.0,0.43914641]
[1727926535937,0.001818,61475.0,61474.0,0.43814641]
[1727926536394,0.002818,61475.0,61474.0,0.43914641]
[1727926536853,0.000818,61475.0,61474.0,0.43714641]
[1727926537093,0.000818,61475.0,61474.0,0.30557]
[1727926537094,0.001818,61475.0,61474.0,0.30557]
[1727926538080,0.002818,61475.0,61474.0,0.30657]
[1727926538532,0.02731869,61475.0,61474.0,0.30557]
[1727926539020,0.02831869,61475.0,61474.0,0.30657]
[1727926539952,0.002818,61475.0,61474.0,0.30657]
[1727926542930,0.02831855,61475.0,61474.0,0.30657]
[1727926545245,0.002818,61475.0,61474.0,0.30657]
[1727926548486,0.02831877,61475.0,61474.0,0.30657]
[1727926550885,0.02831877,61475.0,61474.0,0.22377]
[1727926552863,0.15845277,61475.0,61474.0,0.003634]
[1727926553124,0.432652,61475.0,61474.0,0.003634]
[1727926553359,0.44019244,61475.0,61474.0,0.003634]
[1727926553621,0.43919244,61475.0,61474.0,0.002634]
[1727926554102,0.44219244,61475.0,61474.0,0.002634]
[1727926554682,0.44119244,61475.0,61474.0,0.001634]
[1727926554916,0.45219244,61475.0,61474.0,0.001634]
[1727926555149,0.44119244,61475.0,61474.0,0.001634]
[1727926555434,0.45119244,61475.0,61474.0,0.001634]
[1727926555676,0.73466825,61475.0,61474.0,0.001634]
[1727926555928,0.77117391,61475.0,61474.0,0.001634]
[1727926557034,0.69040179,61475.0,61474.0,0.001634]
[1727926557315,0.61936791,61475.0,61474.0,0.001634]
[1727926557817,0.69130375,61475.0,61474.0,0.001634]
[1727926558081,0.69129941,61475.0,61474.0,0.001634]
[1727926558321,0.59386225,61475.0,61474.0,0.001634]
[1727926559875,0.7066052,61475.0,61474.0,0.001634]
[1727926560481,0.59386225,61475.0,61474.0,0.001634]
[1727926560703,0.61736927,61475.0,61474.0,0.001634]
[1727926561312,0.35806465,61475.0,61474.0,0.001634]
[1727926561522,0.05486546,61475.0,61474.0,0.001634]
[1727926561738,0.05486546,61475.0,61474.0,0.13177]
[1727926561963,0.04732502,61475.0,61474.0,0.13177]
[1727926562194,0.04284631,61475.0,61474.0,0.13177]
[1727926562674,0.04084631,61475.0,61474.0,0.13177]
[1727926563118,0.03432502,61475.0,61474.0,0.13177]
[1727926563382,0.04088381,61475.0,61474.0,0.001634]
[1727926563600,0.04088381,61475.0,61474.0,0.13177]
[1727926564064,0.04788381,61475.0,61474.0,0.13177]
[1727926564723,0.02632502,61475.0,61474.0,0.13177]
[1727926564962,0.03288227,61475.0,61474.0,0.13177]
[1727926565183,0.03388227,61475.0,61474.0,0.13277]
[1727926565399,0.00837525,61475.0,61474.0,0.13577]
[1727926565858,0.00837525,61475.0,61474.0,0.13277]
[1727926566326,0.00837525,61475.0,61474.0,0.13577]
[1727926568614,0.03387693,61475.0,61474.0,0.005634]
[1727926568840,0.16401093,61475.0,61474.0,0.005634]
[1727926569073,0.29668074,61475.0,61474.0,0.005634]
[1727926569530,0.29668074,61475.0,61474.0,0.001634]
[1727926569531,0.29568074,61475.0,61474.0,0.001634]
[1727926570022,0.16301093,61475.0,61474.0,0.001634]
[1727926570909,0.16501093,61475.0,61474.0,0.001634]
[1727926571132,0.16301093,61475.0,61474.0,0.001634]
[1727926571371,0.17201093,61475.0,61474.0,0.001634]
[1727926571587,0.18001093,61475.0,61474.0,0.001634]
[1727926571813,0.17201093,61475.0,61474.0,0.001634]
[1727926572033,0.16301093,61475.0,61474.0,0.001634]
[1727926572257,0.18701093,61475.0,61474.0,0.001634]
[1727926572483,0.17401093,61475.0,61474.0,0.001634]
[1727926572704,0.16301093,61475.0,61474.0,0.001634]
[1727926573145,0.17701093,61475.0,61474.0,0.001634]
[1727926574950,0.24874497,61475.0,61474.0,0.001634]
[1727926575174,0.57787599,61475.0,61474.0,0.001634]
[1727926575414,0.57787599,61475.0,61456.0,0.24405324]
[1727926575415,0.130172,61457.0,61456.0,0.24405324]
[1727926575656,0.230182,61452.0,61451.0,0.001636]
[1727926575889,0.38585181,61452.0,61451.0,0.001636]
[1727926576131,0.39236704,61452.0,61451.0,0.001636]
[1727926576391,0.26218504,61452.0,61425.0,0.078734]
[1727926576631,0.130233,61428.0,61425.0,0.001634]
[1727926576885,0.26934231,61428.0,61425.0,0.001634]
[1727926577117,0.130235,61427.0,61425.0,0.001634]
[1727926577572,0.13667692,61427.0,61425.0,0.001634]
[1727926578045,0.00644192,61427.0,61426.0,0.131874]
[1727926578529,0.1,61436.0,61431.0,0.130226]
[1727926578769,0.230218,61436.0,61430.0,0.130229]
[1727926579003,0.130219,61435.0,61430.0,0.130229]
[1727926579252,0.049893,61439.0,61437.0,0.130213]
[1727926579489,0.24405324,61438.0,61437.0,0.130214]
[1727926579722,0.24405324,61438.0,61430.0,0.13266981]
[1727926579723,0.02551742,61434.0,61433.0,0.130223]
[1727926579949,0.02551742,61434.0,61433.0,0.39392235]
[1727926580186,0.02551742,61434.0,61433.0,0.390667]
[1727926580661,0.02551742,61434.0,61433.0,0.392667]
[1727926581147,0.02551742,61434.0,61433.0,0.390667]
[1727926582076,0.02551742,61434.0,61433.0,0.52333681]
[1727926582345,0.02751742,61434.0,61433.0,0.52433681]
[1727926582575,0.02751742,61434.0,61433.0,0.52633681]
[1727926583580,0.02751742,61434.0,61433.0,0.62633681]
[1727926584220,0.02651742,61434.0,61433.0,0.62633681]
[1727926584446,0.02651742,61434.0,61433.0,0.63733681]
[1727926584931,0.24405324,61445.0,61444.0,0.130199]
[1727926585404,0.2695655,61445.0,61444.0,0.130199]
[1727926585630,0.02551226,61445.0,61444.0,0.130199]
[1727926586125,0.02551226,61445.0,61444.0,0.211399]
[1727926586625,0.02551226,61445.0,61444.0,0.245029]
[1727926587319,0.02551226,61445.0,61444.0,0.241029]
[1727926587777,0.02551226,61445.0,61444.0,0.247029]
[1727926588244,0.02551226,61445.0,61444.0,0.246029]
[1727926588464,0.02551226,61445.0,61444.0,0.254029]
[1727926588851,0.02551226,61445.0,61444.0,0.268029]
[1727926589085,0.02551226,61445.0,61444.0,0.240029]
[1727926589320,0.02551226,61445.0,61444.0,0.254029]
[1727926589566,0.02551226,61445.0,61444.0,0.267029]
[1727926589826,0.000819,61452.0,61451.0,0.130185]
[1727926591753,0.001819,61452.0,61451.0,0.143185]
[1727926591986,0.001819,61452.0,61451.0,0.138185]
[1727926592217,0.001819,61452.0,61451.0,0.146185]
[1727926592447,0.001819,61452.0,61451.0,0.138185]
[1727926592720,0.000819,61452.0,61451.0,0.130185]
[1727926592966,0.000819,61452.0,61451.0,0.135185]
[1727926593197,0.02632835,61452.0,61451.0,0.135185]
[1727926593953,0.02732835,61452.0,61451.0,0.141185]
[1727926594401,0.02732835,61452.0,61451.0,0.149185]
[1727926594621,0.02632835,61452.0,61451.0,0.130185]
[1727926594847,0.02632835,61452.0,61451.0,0.135185]
[1727926595122,0.02632835,61452.0,61451.0,0.130185]
[1727926595345,0.001819,61452.0,61451.0,0.138185]
[1727926595577,0.001819,61452.0,61451.0,0.146185]
[1727926595800,0.000819,61452.0,61451.0,0.138185]
[1727926596926,0.000819,61452.0,61451.0,0.130185]
[1727926597144,0.001819,61452.0,61451.0,0.141185]
[1727926597363,0.001819,61452.0,61451.0,0.146185]
[1727926597595,0.000819,61452.0,61451.0,0.130185]
[1727926597812,0.001819,61452.0,61451.0,0.141185]
[1727926598047,0.001819,61452.0,61451.0,0.149185]
[1727926598718,0.02732865,61452.0,61451.0,0.149185]
[1727926601587,0.001819,61452.0,61451.0,0.149185]
[1727926604688,0.02732873,61452.0,61451.0,0.149185]
[1727926608630,0.001819,61452.0,61451.0,0.149185]
[1727926610300,0.00857903,61452.0,61451.0,0.149185]
[1727926610561,0.001819,61452.0,61451.0,0.149185]
[1727926610798,0.00857939,61452.0,61451.0,0.149185]
[1727926611046,0.001819,61452.0,61451.0,0.149185]
[1727926611755,0.03408292,61452.0,61451.0,0.149185]
[1727926611986,0.02732859,61452.0,61451.0,0.149185]
[1727926612247,0.03408292,61452.0,61451.0,0.149185]
[1727926613735,0.03408292,61452.0,61451.0,0.27729646]
[1727926613968,0.02732859,61452.0,61451.0,0.27729646]
[1727926614485,0.02732859,61452.0,61451.0,0.54048317]
[1727926614708,0.02732859,61452.0,61451.0,0.53748317]
[1727926615155,0.02732859,61452.0,61451.0,0.55148317]
[1727926615388,0.02632859,61452.0,61451.0,0.54048317]
[1727926616120,0.02632859,61452.0,61451.0,0.52648317]
[1727926616363,0.02632859,61452.0,61451.0,0.54048317]
[1727926616808,0.02632859,61452.0,61451.0,0.52648317]
[1727926617021,0.02632859,61452.0,61451.0,0.54048317]
[1727926617496,0.02632859,61452.0,61451.0,0.55448317]
[1727926617712,0.02632859,61452.0,61451.0,0.54048317]
[1727926617948,0.02632859,61452.0,61451.0,0.55448317]
[1727926618459,0.000819,61452.0,61451.0,0.55448317]
[1727926619354,0.000819,61452.0,61451.0,0.53740171]
[1727926619594,0.000819,61452.0,61451.0,0.55448227]
[1727926620994,0.000819,61452.0,61451.0,0.31289556]
[1727926621212,0.000819,61452.0,61451.0,0.31489556]
[1727926621435,0.000819,61452.0,61451.0,0.263185]
[1727926621694,0.02632474,61452.0,61451.0,0.158185]
[1727926622608,0.02632474,61452.0,61451.0,0.144185]
[1727926622828,0.02632474,61452.0,61451.0,0.158185]
[1727926623525,0.02632474,61452.0,61451.0,0.130185]
[1727926623769,0.02632474,61452.0,61451.0,0.017]
[1727926623995,0.10912474,61452.0,61451.0,0.017]
[1727926624224,0.11607636,61452.0,61451.0,0.009]
[1727926624445,0.11607636,61452.0,61451.0,0.011]
[1727926624670,0.11607636,61452.0,61451.0,0.009]
[1727926625347,0.24625836,61452.0,61451.0,0.009]
[1727926625572,0.22075262,61452.0,61451.0,0.009]
[1727926626042,0.09057062,61452.0,61451.0,0.009]
[1727926626267,0.09057062,61452.0,61449.0,0.130188]
[1727926626494,0.09057062,61452.0,61451.0,0.004]
[1727926626948,0.35093862,61452.0,61445.0,0.262031]
[1727926627202,0.09057062,61452.0,61451.0,0.002]
[1727926627888,0.09057062,61452.0,61449.0,0.130187]
[1727926628325,0.09157062,61452.0,61449.0,0.130187]
[1727926628548,0.09057062,61452.0,61449.0,0.130187]
[1727926628787,0.09057062,61452.0,61445.0,0.001638]
[1727926628788,0.11608293,61452.0,61445.0,0.001638]
[1727926629013,0.130194,61447.0,61445.0,0.001638]
[1727926629458,0.00691615,61446.0,61445.0,0.001638]
[1727926629732,0.22041115,61446.0,61445.0,0.001638]
[1727926629952,0.31119725,61446.0,61445.0,0.001638]
[1727926630181,0.130218,61435.0,61433.0,0.001638]
[1727926630408,0.213418,61435.0,61433.0,0.001638]
[1727926630633,0.31105278,61435.0,61433.0,0.001638]
[1727926630856,0.33657245,61435.0,61433.0,0.001638]
[1727926631569,0.33657245,61435.0,61434.0,0.002638]
[1727926632033,0.33757245,61435.0,61434.0,0.002638]
[1727926632288,0.33657245,61435.0,61434.0,0.002638]
[1727926632961,0.33657245,61435.0,61434.0,0.001638]
[1727926633182,0.33957245,61435.0,61434.0,0.001638]
[1727926633700,0.33957245,61435.0,61434.0,0.002638]
[1727926633701,0.34257245,61435.0,61434.0,0.002638]
[1727926633925,0.33657245,61435.0,61434.0,0.001638]
[1727926634149,0.45357245,61435.0,61434.0,0.003638]
[1727926634378,0.47657245,61435.0,61434.0,0.002638]
[1727926634602,0.47657245,61435.0,61434.0,0.001638]
[1727926634603,0.46957245,61435.0,61434.0,0.001638]
[1727926634819,0.47857245,61435.0,61434.0,0.002638]
[1727926635040,0.46257245,61435.0,61434.0,0.001638]
[1727926635488,0.47257245,61435.0,61434.0,0.002638]
[1727926636160,0.46957245,61435.0,61434.0,0.002638]
[1727926636379,0.47757245,61435.0,61434.0,0.003638]
[1727926636597,0.46757245,61435.0,61434.0,0.002638]
[1727926637033,0.47557245,61435.0,61434.0,0.003638]
[1727926638289,0.51315387,61435.0,61434.0,0.003638]
[1727926638504,0.130235,61427.0,61426.0,0.001636]
[1727926638743,0.49778484,61427.0,61426.0,0.001636]
[1727926639855,0.50178484,61427.0,61426.0,0.001636]